[Event "Titled Tuesday Blitz February 07 Early 2023"]
[White "Aarav Dengla"]
[Black "Morefield, Jason"]
[WhiteFideId "45059756"]
[BlackFideId "30920825"]
[WhiteElo "2343"]
[BlackElo "2167"]
[Result "0-1"]
[Round "05"]
[TimeControl "180+2"]
[Date "2023.02.07"]
[WhiteClock "0:00:34"]
[BlackClock "0:00:46"]

1. e4 {[%clk 0:02:56]}  c5 {[%clk 0:02:58]} 2. Nf3 {[%clk 0:02:56]}  d6 {[%clk 0:02:59]} 3. d4 {[%clk 0:02:56]}  cxd4 {[%clk 0:03:00]} 4. Qxd4 {[%clk 0:02:55]}  a6 {[%clk 0:02:55]} 5. Nc3 {[%clk 0:02:51]}  Nc6 {[%clk 0:02:55]} 6. Qd1 {[%clk 0:02:50]}  g6 {[%clk 0:02:55]} 7. Bc4 {[%clk 0:02:50]}  Bg7 {[%clk 0:02:55]} 8. Be3 {[%clk 0:02:50]}  Nf6 {[%clk 0:02:55]} 9. h3 {[%clk 0:02:50]}  O-O {[%clk 0:02:52]} 10. Qd2 {[%clk 0:02:50]}  b5 {[%clk 0:02:51]} 11. Bd3 {[%clk 0:02:47]}  b4 {[%clk 0:02:48]} 12. Ne2 {[%clk 0:02:47]}  a5 {[%clk 0:02:48]} 13. Bh6 {[%clk 0:02:46]}  Bb7 {[%clk 0:02:40]} 14. h4 {[%clk 0:02:42]}  Bxh6 {[%clk 0:02:28]} 15. Qxh6 {[%clk 0:02:42]}  Ng4 {[%clk 0:02:29]} 16. Qf4 {[%clk 0:02:41]}  h5 {[%clk 0:02:29]} 17. Nh2 {[%clk 0:02:38]}  Nxh2 {[%clk 0:02:23]} 18. Rxh2 {[%clk 0:02:37]}  Ne5 {[%clk 0:02:24]} 19. f3 {[%clk 0:02:36]}  Kg7 {[%clk 0:02:17]} 20. Rh3 {[%clk 0:02:33]}  Qb6 {[%clk 0:02:09]} 21. Rg3 {[%clk 0:02:24]}  a4 {[%clk 0:02:00]} 22. Qf5 {[%clk 0:02:19]}  b3 {[%clk 0:01:55]} 23. Nf4 {[%clk 0:01:40]}  Qg1+ {[%clk 0:01:36]} 24. Bf1 {[%clk 0:01:39]}  bxc2 {[%clk 0:01:18]} 25. Nxh5+ {[%clk 0:01:38]}  Kh7 {[%clk 0:01:18]} 26. Qg5 {[%clk 0:01:19]}  Ba6 {[%clk 0:01:10]} 27. Kd2 {[%clk 0:00:49]}  Qf2+ {[%clk 0:00:51]} 28. Kc3 {[%clk 0:00:43]}  Rfc8+ {[%clk 0:00:48]} 29. Kb4 {[%clk 0:00:34]}  Qc5+ {[%clk 0:00:46]} 0-1


[Site "https://www.chess.com"]

[Event "Titled Tuesday Blitz February 07 Early 2023"]
[White "Ramirez Allo, Eduardo"]
[Black "Costachi, Mihnea"]
[WhiteFideId "2224178"]
[BlackFideId "1217518"]
[WhiteElo "2274"]
[BlackElo "2476"]
[Result "0-1"]
[Round "05"]
[TimeControl "180+2"]
[Date "2023.02.07"]
[WhiteClock "0:00:03"]
[BlackClock "0:00:29"]

1. d4 {[%clk 0:03:00]}  d5 {[%clk 0:02:56]} 2. c4 {[%clk 0:03:00]}  dxc4 {[%clk 0:02:54]} 3. Nf3 {[%clk 0:03:00]}  Nf6 {[%clk 0:02:54]} 4. e3 {[%clk 0:02:59]}  Bg4 {[%clk 0:02:54]} 5. Bxc4 {[%clk 0:02:59]}  e6 {[%clk 0:02:54]} 6. O-O {[%clk 0:02:58]}  Nc6 {[%clk 0:02:54]} 7. Be2 {[%clk 0:02:57]}  Bd6 {[%clk 0:02:53]} 8. Nbd2 {[%clk 0:02:57]}  O-O {[%clk 0:02:53]} 9. h3 {[%clk 0:02:57]}  Bh5 {[%clk 0:02:53]} 10. Nc4 {[%clk 0:02:57]}  Qe7 {[%clk 0:02:47]} 11. b3 {[%clk 0:02:56]}  Rfd8 {[%clk 0:02:42]} 12. Bb2 {[%clk 0:02:54]}  Bg6 {[%clk 0:02:27]} 13. Rc1 {[%clk 0:02:53]}  Ne4 {[%clk 0:02:24]} 14. Bd3 {[%clk 0:02:42]}  a5 {[%clk 0:02:17]} 15. a4 {[%clk 0:02:27]}  Nb4 {[%clk 0:02:07]} 16. Bb1 {[%clk 0:02:27]}  c5 {[%clk 0:02:02]} 17. Nxd6 {[%clk 0:02:22]}  Rxd6 {[%clk 0:01:41]} 18. Qe2 {[%clk 0:02:18]}  cxd4 {[%clk 0:01:39]} 19. Nxd4 {[%clk 0:02:15]}  e5 {[%clk 0:01:38]} 20. Bxe4 {[%clk 0:01:43]}  Bxe4 {[%clk 0:01:25]} 21. Nb5 {[%clk 0:01:42]}  Rg6 {[%clk 0:01:13]} 22. f3 {[%clk 0:01:34]}  Bd3 {[%clk 0:01:13]} 23. Qd2 {[%clk 0:01:31]}  Bxf1 {[%clk 0:01:09]} 24. Kxf1 {[%clk 0:01:30]}  Rd8 {[%clk 0:01:09]} 25. Qc3 {[%clk 0:01:14]}  Qg5 {[%clk 0:01:03]} 26. g4 {[%clk 0:01:02]}  Nd3 {[%clk 0:00:57]} 27. Rc2 {[%clk 0:00:30]}  Qxe3 {[%clk 0:00:53]} 28. Qc7 {[%clk 0:00:19]}  Qxf3+ {[%clk 0:00:48]} 29. Kg1 {[%clk 0:00:19]}  Qg3+ {[%clk 0:00:45]} 30. Rg2 {[%clk 0:00:20]}  Qe3+ {[%clk 0:00:40]} 31. Kh2 {[%clk 0:00:20]}  Qf4+ {[%clk 0:00:38]} 32. Kg1 {[%clk 0:00:12]}  Rf8 {[%clk 0:00:37]} 33. Ba3 {[%clk 0:00:10]}  Rc6 {[%clk 0:00:31]} 34. Qe7 {[%clk 0:00:07]}  Rfc8 {[%clk 0:00:30]} 35. Re2 {[%clk 0:00:03]}  Qg3+ {[%clk 0:00:29]} 36. Rg2 {[%clk 0:00:03]}  Rc1+ {[%clk 0:00:29]} 37. Bxc1 {[%clk 0:00:03]}  Rxc1# {[%clk 0:00:29]} 0-1


[Site "https://www.chess.com"]

[Event "Titled Tuesday Blitz February 07 Early 2023"]
[White "Garayev, Kanan"]
[Black "Podetti, Davide"]
[WhiteFideId "13406671"]
[BlackFideId "893617"]
[WhiteElo "2346"]
[BlackElo "2281"]
[Result "0-1"]
[Round "05"]
[TimeControl "180+2"]
[Date "2023.02.07"]
[WhiteClock "0:00:35"]
[BlackClock "0:00:21"]

1. e4 {[%clk 0:03:00]}  e5 {[%clk 0:02:59]} 2. Nf3 {[%clk 0:03:00]}  Nc6 {[%clk 0:03:00]} 3. Bc4 {[%clk 0:03:00]}  Bc5 {[%clk 0:02:59]} 4. c3 {[%clk 0:03:01]}  Nf6 {[%clk 0:03:00]} 5. d4 {[%clk 0:03:01]}  exd4 {[%clk 0:03:01]} 6. cxd4 {[%clk 0:03:00]}  Bb4+ {[%clk 0:03:00]} 7. Nc3 {[%clk 0:03:00]}  Nxe4 {[%clk 0:02:56]} 8. O-O {[%clk 0:02:59]}  Bxc3 {[%clk 0:02:55]} 9. d5 {[%clk 0:02:59]}  Bf6 {[%clk 0:02:55]} 10. Re1 {[%clk 0:02:53]}  Ne7 {[%clk 0:02:55]} 11. Rxe4 {[%clk 0:02:53]}  d6 {[%clk 0:02:55]} 12. Bg5 {[%clk 0:02:52]}  Bxg5 {[%clk 0:02:55]} 13. Nxg5 {[%clk 0:02:53]}  h6 {[%clk 0:02:56]} 14. Qh5 {[%clk 0:02:51]}  O-O {[%clk 0:02:42]} 15. Rae1 {[%clk 0:02:37]}  Nf5 {[%clk 0:02:01]} 16. Nh3 {[%clk 0:02:07]}  Bd7 {[%clk 0:01:47]} 17. Bd3 {[%clk 0:02:03]}  Qf6 {[%clk 0:01:43]} 18. Rf4 {[%clk 0:02:00]}  g6 {[%clk 0:01:27]} 19. Qg4 {[%clk 0:01:38]}  Rfe8 {[%clk 0:01:21]} 20. Rf1 {[%clk 0:01:37]}  Qe5 {[%clk 0:01:09]} 21. Be4 {[%clk 0:01:16]}  Re7 {[%clk 0:01:05]} 22. Qd1 {[%clk 0:00:58]}  Nd4 {[%clk 0:00:59]} 23. Bf3 {[%clk 0:00:50]}  Ne2+ {[%clk 0:00:47]} 24. Bxe2 {[%clk 0:00:48]}  Qxe2 {[%clk 0:00:48]} 25. Qc1 {[%clk 0:00:38]}  Bxh3 {[%clk 0:00:42]} 26. gxh3 {[%clk 0:00:39]}  Rae8 {[%clk 0:00:38]} 27. Rc4 {[%clk 0:00:37]}  Re5 {[%clk 0:00:22]} 28. Qxh6 {[%clk 0:00:35]}  Qxc4 {[%clk 0:00:21]} 0-1


[Site "https://www.chess.com"]

[Event "Titled Tuesday Blitz February 07 Early 2023"]
[White "Iljin, Timofey"]
[Black "Jain Kashish Manoj"]
[WhiteFideId "14110180"]
[BlackFideId "35081098"]
[WhiteElo "2329"]
[BlackElo "2375"]
[Result "1-0"]
[Round "05"]
[TimeControl "180+2"]
[Date "2023.02.07"]
[WhiteClock "0:00:44"]
[BlackClock "0:00:02"]

1. d4 {[%clk 0:02:59]}  f5 {[%clk 0:02:58]} 2. c4 {[%clk 0:02:59]}  g6 {[%clk 0:02:57]} 3. Nc3 {[%clk 0:03:00]}  Bg7 {[%clk 0:02:57]} 4. h4 {[%clk 0:03:01]}  Nf6 {[%clk 0:02:42]} 5. h5 {[%clk 0:03:01]}  Nxh5 {[%clk 0:02:38]} 6. e4 {[%clk 0:03:01]}  Nf6 {[%clk 0:02:05]} 7. Bd3 {[%clk 0:03:01]}  fxe4 {[%clk 0:01:49]} 8. Nxe4 {[%clk 0:03:02]}  d6 {[%clk 0:01:46]} 9. Nxf6+ {[%clk 0:02:55]}  Bxf6 {[%clk 0:01:46]} 10. Rxh7 {[%clk 0:02:54]}  Rxh7 {[%clk 0:01:24]} 11. Bxg6+ {[%clk 0:02:52]}  Rf7 {[%clk 0:01:23]} 12. Qh5 {[%clk 0:02:52]}  Be6 {[%clk 0:01:16]} 13. d5 {[%clk 0:02:47]}  Qd7 {[%clk 0:01:08]} 14. Ne2 {[%clk 0:02:18]}  c6 {[%clk 0:00:21]} 15. Nf4 {[%clk 0:02:00]}  cxd5 {[%clk 0:00:21]} 16. cxd5 {[%clk 0:02:01]}  Bxd5 {[%clk 0:00:21]} 17. Nxd5 {[%clk 0:02:01]}  Qe6+ {[%clk 0:00:21]} 18. Be3 {[%clk 0:02:01]}  Na6 {[%clk 0:00:20]} 19. Rc1 {[%clk 0:01:31]}  Bxb2 {[%clk 0:00:19]} 20. Rc7 {[%clk 0:01:31]}  Kf8 {[%clk 0:00:05]} 21. Rc4 {[%clk 0:00:51]}  Rf6 {[%clk 0:00:02]} 22. Qh8+ {[%clk 0:00:43]}  Qg8 {[%clk 0:00:02]} 23. Bh6# {[%clk 0:00:44]} 1-0


[Site "https://www.chess.com"]

[Event "Titled Tuesday Blitz February 07 Early 2023"]
[White "Souleidis, Georgios"]
[Black "Yeritsyan, Hayk"]
[WhiteFideId "4206827"]
[BlackFideId "13307320"]
[WhiteElo "2419"]
[BlackElo "2241"]
[Result "0-1"]
[Round "05"]
[TimeControl "180+2"]
[Date "2023.02.07"]
[WhiteClock "0:00:09"]
[BlackClock "0:00:33"]

1. e4 {[%clk 0:03:00]}  e6 {[%clk 0:02:51]} 2. d4 {[%clk 0:03:00]}  d5 {[%clk 0:02:49]} 3. exd5 {[%clk 0:03:00]}  exd5 {[%clk 0:02:47]} 4. Nf3 {[%clk 0:03:01]}  c5 {[%clk 0:02:47]} 5. Bb5+ {[%clk 0:02:58]}  Nc6 {[%clk 0:02:45]} 6. O-O {[%clk 0:02:57]}  Bd6 {[%clk 0:02:30]} 7. dxc5 {[%clk 0:02:46]}  Bxc5 {[%clk 0:02:29]} 8. Nc3 {[%clk 0:02:47]}  Ne7 {[%clk 0:02:29]} 9. Bg5 {[%clk 0:02:06]}  Be6 {[%clk 0:02:24]} 10. Nd4 {[%clk 0:01:54]}  Qd7 {[%clk 0:02:16]} 11. Bxe7 {[%clk 0:01:45]}  Bxe7 {[%clk 0:02:13]} 12. Re1 {[%clk 0:01:37]}  O-O {[%clk 0:02:02]} 13. Nce2 {[%clk 0:01:18]}  Bd6 {[%clk 0:01:53]} 14. c3 {[%clk 0:01:15]}  Rae8 {[%clk 0:01:52]} 15. Qa4 {[%clk 0:01:05]}  Rc8 {[%clk 0:01:39]} 16. Rad1 {[%clk 0:01:05]}  Qc7 {[%clk 0:01:34]} 17. Ng3 {[%clk 0:01:00]}  Bg4 {[%clk 0:01:24]} 18. f3 {[%clk 0:00:45]}  Nxd4 {[%clk 0:01:17]} 19. Rxd4 {[%clk 0:00:27]}  Be6 {[%clk 0:01:11]} 20. Rdd1 {[%clk 0:00:16]}  Bxg3 {[%clk 0:01:08]} 21. hxg3 {[%clk 0:00:17]}  a6 {[%clk 0:01:06]} 22. Bf1 {[%clk 0:00:15]}  Qxg3 {[%clk 0:01:06]} 23. Qd4 {[%clk 0:00:15]}  h5 {[%clk 0:01:01]} 24. Qe5 {[%clk 0:00:13]}  Qxe5 {[%clk 0:01:00]} 25. Rxe5 {[%clk 0:00:14]}  g6 {[%clk 0:01:00]} 26. Rd4 {[%clk 0:00:14]}  Kg7 {[%clk 0:00:59]} 27. Re2 {[%clk 0:00:14]}  b5 {[%clk 0:00:57]} 28. a3 {[%clk 0:00:13]}  Rc4 {[%clk 0:00:56]} 29. Red2 {[%clk 0:00:12]}  Rxd4 {[%clk 0:00:56]} 30. Rxd4 {[%clk 0:00:13]}  Kf6 {[%clk 0:00:56]} 31. Kf2 {[%clk 0:00:14]}  Rb8 {[%clk 0:00:55]} 32. Ke3 {[%clk 0:00:13]}  Ke5 {[%clk 0:00:55]} 33. f4+ {[%clk 0:00:13]}  Kd6 {[%clk 0:00:56]} 34. Be2 {[%clk 0:00:13]}  a5 {[%clk 0:00:54]} 35. Bf3 {[%clk 0:00:12]}  Kc5 {[%clk 0:00:54]} 36. b4+ {[%clk 0:00:12]}  axb4 {[%clk 0:00:54]} 37. cxb4+ {[%clk 0:00:11]}  Kd6 {[%clk 0:00:54]} 38. Kd2 {[%clk 0:00:11]}  Ra8 {[%clk 0:00:53]} 39. Rd3 {[%clk 0:00:11]}  Rc8 {[%clk 0:00:52]} 40. Rc3 {[%clk 0:00:10]}  Ra8 {[%clk 0:00:51]} 41. Ke3 {[%clk 0:00:09]}  Rd8 {[%clk 0:00:49]} 42. Kd4 {[%clk 0:00:09]}  h4 {[%clk 0:00:49]} 43. Be2 {[%clk 0:00:09]}  Rb8 {[%clk 0:00:47]} 44. Rc5 {[%clk 0:00:09]}  f6 {[%clk 0:00:47]} 45. Rxb5 {[%clk 0:00:08]}  Rc8 {[%clk 0:00:44]} 46. Rc5 {[%clk 0:00:08]}  Ra8 {[%clk 0:00:44]} 47. Rc3 {[%clk 0:00:08]}  g5 {[%clk 0:00:43]} 48. f5 {[%clk 0:00:08]}  Bxf5 {[%clk 0:00:41]} 49. Rb3 {[%clk 0:00:08]}  Re8 {[%clk 0:00:39]} 50. Bf3 {[%clk 0:00:07]}  Be4 {[%clk 0:00:39]} 51. b5 {[%clk 0:00:07]}  Bxf3 {[%clk 0:00:38]} 52. gxf3 {[%clk 0:00:08]}  h3 {[%clk 0:00:38]} 53. Rb2 {[%clk 0:00:08]}  f5 {[%clk 0:00:37]} 54. a4 {[%clk 0:00:08]}  g4 {[%clk 0:00:37]} 55. fxg4 {[%clk 0:00:08]}  fxg4 {[%clk 0:00:37]} 56. b6 {[%clk 0:00:09]}  g3 {[%clk 0:00:34]} 57. b7 {[%clk 0:00:09]}  g2 {[%clk 0:00:33]} 0-1


[Site "https://www.chess.com"]

[Event "Titled Tuesday Blitz February 07 Early 2023"]
[White "Han, Yichen"]
[Black "Hajiyev, Kanan"]
[WhiteFideId "1054430"]
[BlackFideId "13404148"]
[WhiteElo "2413"]
[BlackElo "2197"]
[Result "1-0"]
[Round "05"]
[TimeControl "180+2"]
[Date "2023.02.07"]
[WhiteClock "0:01:12"]
[BlackClock "0:00:16"]

1. d4 {[%clk 0:02:52]}  d5 {[%clk 0:02:56]} 2. c4 {[%clk 0:02:52]}  c6 {[%clk 0:02:57]} 3. Nf3 {[%clk 0:02:51]}  Nf6 {[%clk 0:02:57]} 4. g3 {[%clk 0:02:52]}  Bf5 {[%clk 0:02:56]} 5. Bg2 {[%clk 0:02:52]}  e6 {[%clk 0:02:57]} 6. O-O {[%clk 0:02:50]}  Be7 {[%clk 0:02:53]} 7. Qb3 {[%clk 0:02:50]}  Qb6 {[%clk 0:02:53]} 8. c5 {[%clk 0:02:48]}  Qxb3 {[%clk 0:02:48]} 9. axb3 {[%clk 0:02:49]}  Nbd7 {[%clk 0:02:40]} 10. b4 {[%clk 0:02:47]}  a6 {[%clk 0:02:40]} 11. Nc3 {[%clk 0:02:44]}  O-O {[%clk 0:02:39]} 12. Nh4 {[%clk 0:02:44]}  Bg4 {[%clk 0:02:36]} 13. h3 {[%clk 0:02:42]}  Bh5 {[%clk 0:02:36]} 14. g4 {[%clk 0:02:42]}  Bg6 {[%clk 0:02:30]} 15. Nxg6 {[%clk 0:02:29]}  hxg6 {[%clk 0:02:31]} 16. Bf4 {[%clk 0:02:28]}  Rfe8 {[%clk 0:02:30]} 17. Ra3 {[%clk 0:02:25]}  Rac8 {[%clk 0:02:28]} 18. Bg3 {[%clk 0:02:24]}  Bd8 {[%clk 0:02:26]} 19. f4 {[%clk 0:02:16]}  Bc7 {[%clk 0:02:21]} 20. e3 {[%clk 0:02:16]}  g5 {[%clk 0:02:20]} 21. Ne2 {[%clk 0:02:13]}  Ne4 {[%clk 0:02:03]} 22. Bxe4 {[%clk 0:02:10]}  dxe4 {[%clk 0:01:57]} 23. fxg5 {[%clk 0:02:10]}  Bxg3 {[%clk 0:01:57]} 24. Nxg3 {[%clk 0:02:11]}  e5 {[%clk 0:01:58]} 25. Nxe4 {[%clk 0:02:09]}  Re6 {[%clk 0:01:50]} 26. Nd6 {[%clk 0:02:04]}  Rc7 {[%clk 0:01:50]} 27. Nxf7 {[%clk 0:01:58]}  exd4 {[%clk 0:01:30]} 28. exd4 {[%clk 0:01:55]}  Nf6 {[%clk 0:01:15]} 29. Nh6+ {[%clk 0:01:39]}  gxh6 {[%clk 0:01:11]} 30. gxf6 {[%clk 0:01:34]}  Kf7 {[%clk 0:01:09]} 31. Raf3 {[%clk 0:01:33]}  Rd7 {[%clk 0:01:07]} 32. Rf4 {[%clk 0:01:33]}  Re2 {[%clk 0:01:04]} 33. R1f2 {[%clk 0:01:33]}  Re3 {[%clk 0:01:02]} 34. h4 {[%clk 0:01:32]}  Rd3 {[%clk 0:01:00]} 35. g5 {[%clk 0:01:29]}  hxg5 {[%clk 0:01:01]} 36. hxg5 {[%clk 0:01:30]}  R3xd4 {[%clk 0:00:37]} 37. Rxd4 {[%clk 0:01:29]}  Rxd4 {[%clk 0:00:38]} 38. g6+ {[%clk 0:01:29]}  Kf8 {[%clk 0:00:18]} 39. f7 {[%clk 0:01:12]}  Rg4+ {[%clk 0:00:16]} 40. Rg2 {[%clk 0:01:12]} 1-0


[Site "https://www.chess.com"]

[Event "Titled Tuesday Blitz February 07 Early 2023"]
[White "Song, Julien"]
[Black "Wahedi, Ahmad Siar"]
[WhiteFideId "659487"]
[BlackFideId "4651260"]
[WhiteElo "2350"]
[BlackElo "2274"]
[Result "1/2-1/2"]
[Round "05"]
[TimeControl "180+2"]
[Date "2023.02.07"]
[WhiteClock "0:00:33"]
[BlackClock "0:00:46"]

1. d4 {[%clk 0:03:00]}  d5 {[%clk 0:02:59]} 2. c4 {[%clk 0:03:01]}  c6 {[%clk 0:02:59]} 3. Nf3 {[%clk 0:03:01]}  Nf6 {[%clk 0:03:00]} 4. Nc3 {[%clk 0:03:01]}  e6 {[%clk 0:02:58]} 5. g3 {[%clk 0:03:01]}  Be7 {[%clk 0:02:52]} 6. Bg2 {[%clk 0:03:02]}  O-O {[%clk 0:02:52]} 7. O-O {[%clk 0:03:02]}  b6 {[%clk 0:02:44]} 8. Nd2 {[%clk 0:03:02]}  Bb7 {[%clk 0:02:43]} 9. e4 {[%clk 0:03:03]}  Nbd7 {[%clk 0:02:41]} 10. e5 {[%clk 0:03:03]}  Ne8 {[%clk 0:02:40]} 11. cxd5 {[%clk 0:03:04]}  cxd5 {[%clk 0:02:32]} 12. Re1 {[%clk 0:03:03]}  Rc8 {[%clk 0:02:27]} 13. Nf1 {[%clk 0:03:03]}  a6 {[%clk 0:02:27]} 14. h4 {[%clk 0:03:02]}  b5 {[%clk 0:02:27]} 15. Nh2 {[%clk 0:03:01]}  Qb6 {[%clk 0:02:23]} 16. h5 {[%clk 0:03:01]}  f5 {[%clk 0:02:21]} 17. exf6 {[%clk 0:03:00]}  Ndxf6 {[%clk 0:02:13]} 18. h6 {[%clk 0:02:59]}  g6 {[%clk 0:02:12]} 19. Nf3 {[%clk 0:02:58]}  Ne4 {[%clk 0:02:07]} 20. Nxe4 {[%clk 0:02:57]}  dxe4 {[%clk 0:02:06]} 21. Ng5 {[%clk 0:02:56]}  Rd8 {[%clk 0:01:55]} 22. Nxe4 {[%clk 0:02:34]}  Rxd4 {[%clk 0:01:54]} 23. Be3 {[%clk 0:02:23]}  Rxd1 {[%clk 0:01:50]} 24. Bxb6 {[%clk 0:02:23]}  Rxa1 {[%clk 0:01:46]} 25. Rxa1 {[%clk 0:02:22]}  Bd5 {[%clk 0:01:43]} 26. Nc3 {[%clk 0:02:15]}  Bxg2 {[%clk 0:01:42]} 27. Kxg2 {[%clk 0:02:16]}  Nf6 {[%clk 0:01:38]} 28. Re1 {[%clk 0:02:16]}  Kf7 {[%clk 0:01:37]} 29. Bd4 {[%clk 0:01:57]}  Rd8 {[%clk 0:01:36]} 30. Be3 {[%clk 0:01:47]}  Rd3 {[%clk 0:01:32]} 31. Kf3 {[%clk 0:01:31]}  Bb4 {[%clk 0:01:31]} 32. Rd1 {[%clk 0:01:23]}  Rxd1 {[%clk 0:01:29]} 33. Nxd1 {[%clk 0:01:24]}  e5 {[%clk 0:01:20]} 34. Nc3 {[%clk 0:01:19]}  Ke6 {[%clk 0:01:18]} 35. Ne4 {[%clk 0:01:17]}  Nxe4 {[%clk 0:01:03]} 36. Kxe4 {[%clk 0:01:18]}  Bf8 {[%clk 0:01:02]} 37. Bg5 {[%clk 0:01:14]}  Bd6 {[%clk 0:01:01]} 38. b3 {[%clk 0:01:07]}  Bc5 {[%clk 0:01:01]} 39. f3 {[%clk 0:01:07]}  Bd6 {[%clk 0:00:59]} 40. a4 {[%clk 0:01:05]}  Bc5 {[%clk 0:00:57]} 41. Bd2 {[%clk 0:00:59]}  Bf8 {[%clk 0:00:56]} 42. g4 {[%clk 0:00:57]}  Bd6 {[%clk 0:00:54]} 43. Bc3 {[%clk 0:00:56]}  Bc7 {[%clk 0:00:54]} 44. Bb4 {[%clk 0:00:49]}  Bb8 {[%clk 0:00:51]} 45. Bf8 {[%clk 0:00:49]}  Bc7 {[%clk 0:00:51]} 46. axb5 {[%clk 0:00:41]}  axb5 {[%clk 0:00:51]} 47. Bc5 {[%clk 0:00:37]}  Bb8 {[%clk 0:00:50]} 48. Bb4 {[%clk 0:00:36]}  Bc7 {[%clk 0:00:51]} 49. Bc5 {[%clk 0:00:36]}  Bd8 {[%clk 0:00:51]} 50. Bf8 {[%clk 0:00:35]}  Bg5 {[%clk 0:00:50]} 51. Bg7 {[%clk 0:00:35]}  Bf4 {[%clk 0:00:50]} 52. Bf8 {[%clk 0:00:32]}  Kf7 {[%clk 0:00:50]} 53. Bg7 {[%clk 0:00:32]}  Ke6 {[%clk 0:00:49]} 54. Bf8 {[%clk 0:00:32]}  Bg3 {[%clk 0:00:49]} 55. Bg7 {[%clk 0:00:33]}  Bh2 {[%clk 0:00:49]} 56. Bf8 {[%clk 0:00:32]}  Bf4 {[%clk 0:00:49]} 57. Bg7 {[%clk 0:00:33]}  Bc1 {[%clk 0:00:47]} 58. Bf8 {[%clk 0:00:32]}  Bf4 {[%clk 0:00:46]} 59. Bg7 {[%clk 0:00:33]}  Bg3 {[%clk 0:00:46]} 60. Bf8 {[%clk 0:00:33]}  Bf4 {[%clk 0:00:46]} 1/2-1/2


[Site "https://www.chess.com"]

[Event "Titled Tuesday Blitz February 07 Early 2023"]
[White "Turzo, Attila"]
[Black "Kodinets, Konstantin L."]
[WhiteFideId "704954"]
[BlackFideId "4122011"]
[WhiteElo "2279"]
[BlackElo "2409"]
[Result "1-0"]
[Round "05"]
[TimeControl "180+2"]
[Date "2023.02.07"]
[WhiteClock "0:01:21"]
[BlackClock "0:00:12"]

1. d4 {[%clk 0:03:00]}  d6 {[%clk 0:01:41]} 2. e4 {[%clk 0:02:51]}  Nf6 {[%clk 0:01:41]} 3. Nc3 {[%clk 0:02:40]}  e5 {[%clk 0:01:41]} 4. Nf3 {[%clk 0:02:38]}  exd4 {[%clk 0:01:41]} 5. Nxd4 {[%clk 0:02:38]}  Be7 {[%clk 0:01:42]} 6. Bf4 {[%clk 0:02:32]}  O-O {[%clk 0:01:42]} 7. Qd2 {[%clk 0:02:33]}  Nc6 {[%clk 0:01:43]} 8. O-O-O {[%clk 0:02:32]}  Nxd4 {[%clk 0:01:43]} 9. Qxd4 {[%clk 0:02:32]}  a6 {[%clk 0:01:44]} 10. Kb1 {[%clk 0:02:29]}  Be6 {[%clk 0:01:42]} 11. f3 {[%clk 0:02:27]}  Nd7 {[%clk 0:01:42]} 12. g4 {[%clk 0:02:24]}  b5 {[%clk 0:01:37]} 13. h4 {[%clk 0:02:23]}  Bf6 {[%clk 0:01:36]} 14. Qd2 {[%clk 0:02:21]}  b4 {[%clk 0:01:32]} 15. Nd5 {[%clk 0:02:18]}  Bxd5 {[%clk 0:01:32]} 16. exd5 {[%clk 0:02:07]}  Nb6 {[%clk 0:01:32]} 17. g5 {[%clk 0:01:59]}  Be5 {[%clk 0:01:30]} 18. Bxe5 {[%clk 0:01:59]}  dxe5 {[%clk 0:01:30]} 19. Qxb4 {[%clk 0:01:59]}  a5 {[%clk 0:01:27]} 20. Qe4 {[%clk 0:01:53]}  Qd6 {[%clk 0:01:26]} 21. Bd3 {[%clk 0:01:51]}  g6 {[%clk 0:01:21]} 22. h5 {[%clk 0:01:51]}  Nd7 {[%clk 0:00:58]} 23. Qh4 {[%clk 0:01:36]}  Rfe8 {[%clk 0:00:11]} 24. hxg6 {[%clk 0:01:33]}  Nf8 {[%clk 0:00:12]} 25. gxf7+ {[%clk 0:01:21]} 1-0


[Site "https://www.chess.com"]

[Event "Titled Tuesday Blitz February 07 Early 2023"]
[White "Djokovic, Nebojsa"]
[Black "Balabayeva, Xeniya"]
[WhiteFideId "938300"]
[BlackFideId "13719688"]
[WhiteElo "2119"]
[BlackElo "2191"]
[Result "1/2-1/2"]
[Round "05"]
[TimeControl "180+2"]
[Date "2023.02.07"]
[WhiteClock "0:00:10"]
[BlackClock "0:00:04"]

1. e4 {[%clk 0:02:57]}  c5 {[%clk 0:02:59]} 2. Nf3 {[%clk 0:02:56]}  e6 {[%clk 0:02:57]} 3. d4 {[%clk 0:02:57]}  cxd4 {[%clk 0:02:54]} 4. Nxd4 {[%clk 0:02:58]}  Nf6 {[%clk 0:02:51]} 5. Nc3 {[%clk 0:02:58]}  Nc6 {[%clk 0:02:51]} 6. Ndb5 {[%clk 0:02:58]}  Bc5 {[%clk 0:02:48]} 7. Nd6+ {[%clk 0:02:58]}  Ke7 {[%clk 0:02:46]} 8. Bf4 {[%clk 0:02:58]}  e5 {[%clk 0:02:44]} 9. Nf5+ {[%clk 0:02:58]}  Kf8 {[%clk 0:02:42]} 10. Bg5 {[%clk 0:02:59]}  d6 {[%clk 0:02:33]} 11. Ne3 {[%clk 0:02:59]}  Be6 {[%clk 0:02:28]} 12. Be2 {[%clk 0:02:58]}  h6 {[%clk 0:02:25]} 13. Bxf6 {[%clk 0:02:58]}  Qxf6 {[%clk 0:02:24]} 14. O-O {[%clk 0:02:58]}  g6 {[%clk 0:02:21]} 15. Ned5 {[%clk 0:02:48]}  Qd8 {[%clk 0:01:29]} 16. Kh1 {[%clk 0:02:48]}  Kg7 {[%clk 0:01:21]} 17. f4 {[%clk 0:02:47]}  exf4 {[%clk 0:01:07]} 18. Rxf4 {[%clk 0:02:47]}  Rf8 {[%clk 0:01:01]} 19. Qf1 {[%clk 0:02:41]}  Bd4 {[%clk 0:00:55]} 20. Rd1 {[%clk 0:02:39]}  Be5 {[%clk 0:00:54]} 21. Rf2 {[%clk 0:02:32]}  Qh4 {[%clk 0:00:47]} 22. Nf4 {[%clk 0:02:25]}  Rad8 {[%clk 0:00:27]} 23. g3 {[%clk 0:02:24]}  Qg5 {[%clk 0:00:23]} 24. Bc4 {[%clk 0:02:23]}  Bg4 {[%clk 0:00:20]} 25. Re1 {[%clk 0:01:58]}  h5 {[%clk 0:00:19]} 26. h4 {[%clk 0:01:56]}  Qe7 {[%clk 0:00:19]} 27. Ncd5 {[%clk 0:01:55]}  Qd7 {[%clk 0:00:18]} 28. c3 {[%clk 0:01:50]}  Rde8 {[%clk 0:00:17]} 29. Ne3 {[%clk 0:01:42]}  Bxf4 {[%clk 0:00:10]} 30. Rxf4 {[%clk 0:01:42]}  Ne5 {[%clk 0:00:10]} 31. Bd5 {[%clk 0:01:38]}  Bh3 {[%clk 0:00:09]} 32. Qe2 {[%clk 0:01:33]}  f6 {[%clk 0:00:05]} 33. Kh2 {[%clk 0:01:23]}  Bg4 {[%clk 0:00:05]} 34. Qf1 {[%clk 0:01:14]}  g5 {[%clk 0:00:05]} 35. Nf5+ {[%clk 0:01:13]}  Bxf5 {[%clk 0:00:05]} 36. Rxf5 {[%clk 0:01:13]}  Ng4+ {[%clk 0:00:05]} 37. Kh1 {[%clk 0:01:09]}  Re5 {[%clk 0:00:04]} 38. hxg5 {[%clk 0:01:02]}  Rxf5 {[%clk 0:00:05]} 39. Qxf5 {[%clk 0:01:02]}  Qxf5 {[%clk 0:00:04]} 40. exf5 {[%clk 0:01:03]}  fxg5 {[%clk 0:00:04]} 41. Re7+ {[%clk 0:00:44]}  Kf6 {[%clk 0:00:05]} 42. Rxb7 {[%clk 0:00:45]}  Kxf5 {[%clk 0:00:04]} 43. Rxa7 {[%clk 0:00:40]}  Ke5 {[%clk 0:00:04]} 44. Ra5 {[%clk 0:00:34]}  Rf1+ {[%clk 0:00:03]} 45. Kg2 {[%clk 0:00:31]}  Ne3+ {[%clk 0:00:03]} 46. Kh2 {[%clk 0:00:26]}  Rf2+ {[%clk 0:00:03]} 47. Kg1 {[%clk 0:00:24]}  Rf1+ {[%clk 0:00:03]} 48. Kh2 {[%clk 0:00:23]}  Rf2+ {[%clk 0:00:04]} 49. Kg1 {[%clk 0:00:10]}  Rf1+ {[%clk 0:00:04]} 50. Kh2 {[%clk 0:00:10]} 1/2-1/2


[Site "https://www.chess.com"]